bitfinex/quotes_BTCUSD_20250616
["timestamp","ask_amount","ask_price","bid_price","bid_amount"]
[1750070279004,0.56787096,107130.0,107120.0,0.46529454]
[1750070279656,0.55853651,107130.0,107120.0,0.30419931]
[1750070279876,0.55853651,107130.0,107120.0,0.46529463]
[1750070280127,0.55853651,107130.0,107120.0,0.47462984]
[1750070280610,0.55853651,107130.0,107120.0,0.45713704]
[1750070280829,0.55853651,107130.0,107120.0,0.47462967]
[1750070281045,0.55853651,107130.0,107120.0,0.47462951]
[1750070281283,0.59443651,107130.0,107120.0,0.31353438]
[1750070281507,0.59443651,107130.0,107120.0,0.44780181]
[1750070281938,0.57653651,107130.0,107120.0,0.45713704]
[1750070282157,0.55853651,107130.0,107120.0,0.47462891]
[1750070282550,0.55853651,107130.0,107120.0,0.4746289]
[1750070282766,0.55853651,107130.0,107120.0,0.45713704]
[1750070283182,0.55853651,107130.0,107120.0,0.47462891]
[1750070283390,0.55853651,107130.0,107120.0,0.46529369]
[1750070283620,0.55853651,107130.0,107120.0,0.44780181]
[1750070283850,0.56787087,107130.0,107120.0,0.45713687]
[1750070284059,0.56787087,107130.0,107120.0,0.47462799]
[1750070284261,0.56787087,107130.0,107120.0,0.47462811]
[1750070285178,0.56787087,107130.0,107120.0,0.47462862]
[1750070285592,0.56787087,107130.0,107120.0,0.47462892]
[1750070286019,0.56787061,107130.0,107120.0,0.47462892]
[1750070286218,0.39051539,107130.0,107120.0,0.52016364]
[1750070286454,0.57347706,107130.0,107120.0,0.52949837]
[1750070286656,0.39051539,107130.0,107120.0,0.52949827]
[1750070286791,0.37745364,107130.0,107120.0,0.52949799]
[1750070287203,0.37745364,107130.0,107120.0,0.51200638]
[1750070287427,0.37745364,107130.0,107120.0,0.52949756]
[1750070287632,0.37745364,107130.0,107120.0,0.52949799]
[1750070288402,0.37745364,107130.0,107120.0,0.52949795]
[1750070288609,0.57347706,107130.0,107120.0,0.52949847]
[1750070289034,0.57347706,107130.0,107120.0,0.52949856]
[1750070289246,0.57347706,107130.0,107120.0,0.52949855]
[1750070289698,0.57347706,107130.0,107120.0,0.52949897]
[1750070290527,0.57347706,107130.0,107120.0,0.52949977]
[1750070291601,0.58281151,107130.0,107120.0,0.51200638]
[1750070291815,0.58281151,107130.0,107120.0,0.52950078]
[1750070292021,0.58281151,107130.0,107120.0,0.52016584]
[1750070292443,0.58281151,107130.0,107120.0,0.50267167]
[1750070292657,0.58281151,107130.0,107120.0,0.52016563]
[1750070292866,0.58281151,107130.0,107120.0,0.50267167]
[1750070293074,0.58281151,107130.0,107120.0,0.52016563]
[1750070293558,0.57347767,107130.0,107120.0,0.52016546]
[1750070293772,0.57347767,107130.0,107120.0,0.52016549]
[1750070293998,0.57347767,107130.0,107120.0,0.52015651]
[1750070294195,0.57347767,107130.0,107120.0,0.5201566]
[1750070294410,0.57347767,107130.0,107120.0,0.5201565]
[1750070294630,0.57347767,107130.0,107120.0,0.50165557]
[1750070295045,0.57347767,107130.0,107120.0,0.50165558]
[1750070295673,0.57347767,107130.0,107120.0,0.51985558]
[1750070296083,0.57347767,107130.0,107120.0,0.50237167]
[1750070296511,0.57347767,107130.0,107120.0,0.50237184]
[1750070297435,0.57347767,107130.0,107120.0,0.51170672]
[1750070298607,0.58654439,107130.0,107120.0,0.51170672]
[1750070301176,0.58654439,107130.0,107120.0,0.31471184]
[1750070301412,0.59501012,107130.0,107120.0,0.45713696]
[1750070301623,0.57721012,107130.0,107120.0,0.45713696]
[1750070301855,0.56787576,107130.0,107120.0,0.44780181]
[1750070302487,0.55854131,107130.0,107120.0,0.25176]
[1750070305867,0.55854131,107130.0,107120.0,0.1]
[1750070306117,0.59304131,107130.0,107120.0,0.08684]
[1750070306361,0.59304131,107130.0,107120.0,0.2386]
[1750070308350,0.59304131,107130.0,107120.0,0.22544]
[1750070309563,0.62108731,107130.0,107120.0,0.22544]
[1750070311494,0.62108731,107130.0,107120.0,0.07368]
[1750070311706,0.62108731,107130.0,107120.0,0.22544]
[1750070311916,0.64904539,107130.0,107120.0,0.22544]
[1750070312079,0.62108731,107130.0,107120.0,0.19675001]
[1750070312283,0.62108731,107130.0,107120.0,0.04047722]
[1750070312490,0.53604164,107120.0,107110.0,0.58716]
[1750070312702,0.54910731,107120.0,107110.0,0.73892]
[1750070312909,0.55844246,107120.0,107110.0,0.73892]
[1750070313110,0.58649146,107120.0,107110.0,0.58716]
[1750070313401,0.18672392,107110.0,107100.0,0.5288346]
[1750070313618,0.19606011,107110.0,107100.0,0.78617325]
[1750070313825,0.02240082,107120.0,107100.0,0.78617325]
[1750070314033,0.19606011,107110.0,107100.0,0.79551005]
[1750070314254,0.23344478,107110.0,107100.0,0.79551005]
[1750070314541,0.23344478,107110.0,107100.0,0.79651005]
[1750070315313,0.24278071,107110.0,107100.0,0.79651005]
[1750070315528,0.24278071,107110.0,107100.0,0.79851005]
[1750070315738,0.24278071,107110.0,107100.0,0.80784676]
[1750070316435,0.58278071,107110.0,107100.0,0.80784676]
[1750070319263,0.58278071,107110.0,107100.0,0.64675005]
[1750070319481,0.58278071,107110.0,107100.0,0.80784676]
[1750070320287,0.58278071,107110.0,107100.0,0.80684676]
[1750070320491,0.58278071,107110.0,107100.0,0.61596676]
[1750070320709,0.58278071,107110.0,107100.0,0.80484676]
[1750070320913,0.58278071,107110.0,107100.0,0.80484633]
[1750070321881,0.58278071,107110.0,107100.0,0.78617299]
[1750070322506,0.58278071,107110.0,107100.0,0.7955097]
[1750070323099,0.58278071,107110.0,107100.0,0.80484633]
[1750070324911,0.58278071,107110.0,107100.0,0.80484589]
[1750070325118,0.58278071,107110.0,107100.0,0.80484545]
[1750070326099,0.57344452,107110.0,107100.0,0.80484545]
[1750070326307,0.39605662,107110.0,107100.0,0.80484545]
[1750070326595,0.40539272,107110.0,107100.0,0.80484545]
[1750070326801,0.59211664,107110.0,107100.0,0.80484545]
[1750070328750,0.40539272,107110.0,107100.0,0.80484545]
[1750070329057,0.40539272,107110.0,107100.0,0.61426545]
[1750070329230,0.60145283,107110.0,107100.0,0.72955246]
[1750070329466,0.60145283,107110.0,107100.0,0.587129]
[1750070329650,0.60145283,107110.0,107100.0,0.738889]
[1750070330620,0.60145283,107110.0,107100.0,0.74822545]
[1750070330802,0.60145283,107110.0,107100.0,0.76522545]
[1750070331211,0.60145283,107110.0,107100.0,0.56099246]
[1750070331452,0.59211716,107110.0,107100.0,0.71275246]
[1750070331652,0.59211716,107110.0,107100.0,0.722089]
[1750070332246,0.59211716,107110.0,107100.0,0.741389]
[1750070335093,0.59211716,107110.0,107100.0,0.589629]
[1750070335296,0.59211716,107110.0,107100.0,0.741389]
[1750070338079,0.368049,107110.0,107100.0,0.86597467]
[1750070338259,0.35286465,107110.0,107100.0,0.88051552]
[1750070338940,0.34,107110.0,107100.0,0.88051552]
[1750070339594,0.34,107110.0,107100.0,0.88151552]
[1750070339803,0.34,107110.0,107100.0,0.88351552]
[1750070340038,0.34,107110.0,107100.0,0.86897467]
[1750070340250,0.34,107110.0,107100.0,0.88351552]
[1750070341525,0.34,107110.0,107100.0,0.63351552]
[1750070355132,0.34,107110.0,107100.0,0.67439552]
[1750070362413,0.34,107110.0,107100.0,0.7754944]
[1750070364019,0.3395332,107110.0,107100.0,0.7754944]
[1750070365629,0.3395332,107110.0,107100.0,0.76095355]
[1750070367467,0.3243498,107110.0,107100.0,0.76095355]
[1750070372681,0.3243498,107110.0,107100.0,0.76131355]
[1750070372897,0.3243498,107110.0,107100.0,0.76127355]
[1750070377544,0.30916602,107110.0,107100.0,0.76127355]
[1750070379917,0.30916602,107110.0,107100.0,0.56831355]
[1750070380129,0.30916602,107110.0,107100.0,0.76107355]
[1750070380367,0.30916602,107110.0,107100.0,0.76103355]
[1750070394123,0.30869922,107110.0,107100.0,0.76103355]
[1750070397713,0.40489885,107120.0,107110.0,0.21473144]
[1750070397930,0.40489885,107120.0,107110.0,0.40574867]
[1750070398132,0.39556397,107120.0,107110.0,0.40574867]
[1750070398740,0.40489885,107120.0,107110.0,0.40574867]
[1750070398982,0.39556397,107120.0,107110.0,0.40574867]
[1750070399246,0.36756001,107120.0,107110.0,0.40574867]
[1750070399498,0.37689463,107120.0,107110.0,0.40574867]
[1750070401073,0.38622943,107120.0,107110.0,0.55822867]
[1750070401363,0.37689463,107120.0,107110.0,0.55822867]
[1750070401584,0.38622934,107120.0,107110.0,0.55822867]
[1750070402235,0.39556431,107120.0,107110.0,0.55822867]
[1750070402446,0.39556422,107120.0,107110.0,0.55822867]
[1750070403910,0.10329937,107120.0,107110.0,0.4634532]
[1750070406505,0.10329937,107120.0,107110.0,0.3109732]
[1750070406723,0.10329937,107120.0,107110.0,0.4634932]
[1750070408702,0.10329928,107120.0,107110.0,0.4634932]
[1750070410584,0.44329919,107120.0,107110.0,0.4634932]
[1750070411220,0.44329919,107120.0,107110.0,0.54779478]
[1750070411750,0.42399919,107120.0,107110.0,0.54779478]
[1750070411973,0.41423434,107120.0,107110.0,0.54779478]
[1750070412162,0.40489919,107120.0,107110.0,0.54779478]
[1750070413518,0.40489919,107120.0,107110.0,0.4634932]
[1750070414438,0.22720966,107110.0,107100.0,0.3995226]
[1750070414687,0.22720966,107110.0,107100.0,0.55201514]
[1750070415640,0.22720966,107110.0,107100.0,0.55301514]
[1750070416325,0.22720966,107110.0,107100.0,0.55501514]
[1750070422365,0.22720966,107110.0,107100.0,0.36305514]
[1750070422576,0.22720966,107110.0,107100.0,0.55489514]
[1750070423197,0.22720966,107110.0,107100.0,0.65104436]
[1750070429455,0.45303443,107120.0,107110.0,0.21473144]
[1750070429664,0.45303443,107120.0,107110.0,0.3109732]
[1750070430518,0.45303443,107120.0,107110.0,0.08376354]
[1750070430724,0.45303443,107120.0,107110.0,0.42260746]
[1750070431176,0.63974153,107120.0,107110.0,0.29849498]
[1750070431401,0.45303504,107120.0,107110.0,0.45061498]
[1750070432107,0.63040682,107120.0,107110.0,0.4413594]
[1750070432391,0.63040682,107120.0,107110.0,0.46003083]
[1750070432889,0.63040682,107120.0,107110.0,0.27048746]
[1750070433102,0.0583716,107110.0,107100.0,0.51477381]
[1750070433343,0.60376695,107110.0,107100.0,0.35607299]
[1750070433570,0.58509604,107110.0,107100.0,0.55215141]
[1750070433823,0.58509604,107110.0,107100.0,0.70439141]
[1750070434039,0.58509604,107110.0,107100.0,0.72306492]
[1750070434503,0.58509604,107110.0,107100.0,0.57082492]
[1750070435020,0.58509604,107110.0,107100.0,0.72302492]
[1750070435492,0.58509604,107110.0,107100.0,0.72402492]
[1750070436205,0.58509604,107110.0,107100.0,0.73536155]
[1750070436437,0.58509604,107110.0,107100.0,0.73336155]
[1750070437386,0.58509604,107110.0,107100.0,0.72402492]
[1750070442566,0.58509604,107110.0,107100.0,0.73336155]
[1750070443044,0.58509604,107110.0,107100.0,0.72402492]
[1750070449396,0.58509604,107110.0,107100.0,0.73336155]
[1750070455576,0.59443223,107110.0,107100.0,0.73336155]
[1750070459825,0.58509621,107110.0,107100.0,0.72402492]
[1750070461037,0.58509621,107110.0,107100.0,0.71468821]
[1750070461337,0.58509621,107110.0,107100.0,0.35707299]
[1750070461564,0.56642392,107110.0,107100.0,0.17292]
[1750070461976,0.59447392,107110.0,107100.0,0.17292]
[1750070462321,0.61688748,107110.0,107100.0,0.17292]
[1750070463510,0.61688748,107110.0,107100.0,0.021]
[1750070463639,0.61688748,107110.0,107100.0,0.17292]
[1750070464670,0.61688748,107110.0,107100.0,0.021]
[1750070464886,0.61688748,107110.0,107100.0,0.17292]
[1750070470790,0.59447392,107110.0,107100.0,0.17292]
[1750070473258,0.59447392,107110.0,107100.0,0.001]
[1750070473479,0.37735008,107090.0,107080.0,0.55074553]
[1750070473695,0.57344682,107090.0,107080.0,0.79841279]
[1750070474129,0.37735008,107090.0,107080.0,0.80775099]
[1750070474562,0.37735008,107090.0,107080.0,0.76855099]
[1750070474786,0.37739714,107090.0,107080.0,0.77255099]
[1750070474999,0.37739714,107090.0,107080.0,0.77455099]
[1750070475407,0.56415594,107090.0,107080.0,0.77455099]
[1750070475653,0.03739714,107090.0,107080.0,0.77455099]
[1750070476523,0.03739714,107090.0,107080.0,0.62263099]
[1750070476729,0.03739714,107090.0,107080.0,0.77455099]
[1750070477602,0.37739714,107090.0,107080.0,0.77455099]
[1750070478876,0.57349388,107090.0,107080.0,0.76521279]
[1750070479089,0.38673508,107090.0,107080.0,0.76321279]
[1750070479300,0.57349388,107090.0,107080.0,0.61129279]
[1750070479516,0.57349388,107090.0,107080.0,0.76121279]
[1750070479696,0.56415673,107090.0,107080.0,0.76121279]
[1750070479931,0.56415673,107090.0,107080.0,0.76221279]
[1750070481071,0.55481879,107090.0,107080.0,0.77155099]
[1750070481480,0.55481879,107090.0,107080.0,0.78904109]
[1750070481688,0.56415673,107090.0,107080.0,0.78904109]
[1750070482107,0.37739793,107090.0,107080.0,0.77155099]
[1750070482323,0.56415673,107090.0,107080.0,0.78904109]
[1750070482937,0.56415673,107090.0,107080.0,0.77155099]
[1750070483144,0.56415673,107090.0,107080.0,0.78904109]
[1750070483399,0.56415673,107090.0,107080.0,0.7797029]
[1750070483609,0.56415673,107090.0,107080.0,0.75287451]
[1750070483812,0.54548165,107090.0,107080.0,0.55984578]
[1750070484041,0.54548165,107090.0,107080.0,0.55984753]
[1750070484250,0.58728165,107090.0,107080.0,0.73044523]
[1750070484466,0.58728165,107090.0,107080.0,0.72110663]
[1750070484669,0.57353565,107090.0,107080.0,0.72844467]
[1750070484881,0.57353565,107090.0,107080.0,0.73778306]
[1750070485079,0.57353565,107090.0,107080.0,0.7377831]
[1750070485287,0.57353565,107090.0,107080.0,0.5858631]
[1750070485495,0.57353565,107090.0,107080.0,0.73778309]
[1750070485703,0.57353565,107090.0,107080.0,0.71929087]
[1750070485903,0.57453565,107090.0,107080.0,0.74612122]
[1750070486875,0.57453565,107090.0,107080.0,0.74612121]
[1750070487076,0.57453565,107090.0,107080.0,0.72862907]
[1750070487665,0.57453565,107090.0,107080.0,0.74612145]
[1750070488421,0.57453565,107090.0,107080.0,0.65037444]
[1750070488644,0.57453565,107090.0,107080.0,0.65037445]
[1750070488853,0.57453565,107090.0,107080.0,0.63288206]
[1750070489067,0.57453565,107090.0,107080.0,0.65037445]
[1750070489509,0.57453565,107090.0,107080.0,0.63288206]
[1750070489718,0.57453565,107090.0,107080.0,0.65037444]
[1750070489929,0.57453565,107090.0,107080.0,0.66786759]
[1750070490138,0.57453565,107090.0,107080.0,0.65037444]
[1750070490345,0.57453565,107090.0,107080.0,0.66786759]
[1750070490556,0.57453565,107090.0,107080.0,0.65037444]
[1750070491254,0.57453565,107090.0,107080.0,0.64103616]
[1750070491467,0.57453565,107090.0,107080.0,0.63169779]
[1750070491679,0.57453565,107090.0,107080.0,0.48911625]
[1750070491893,0.57453565,107090.0,107080.0,0.64103625]
[1750070492357,0.57453565,107090.0,107080.0,0.63169779]
[1750070492984,0.57453565,107090.0,107080.0,0.64103625]
[1750070498076,0.36910106,107090.0,107080.0,0.65037462]
[1750070498350,0.59321038,107090.0,107080.0,0.65971282]
[1750070499249,0.59321038,107090.0,107080.0,0.65037462]
[1750070500888,0.59321038,107090.0,107080.0,0.64103625]
[1750070501064,0.58387306,107090.0,107080.0,0.63169779]
[1750070501467,0.57453556,107090.0,107080.0,0.62235924]
[1750070501806,0.57453556,107090.0,107080.0,0.47043924]
[1750070502010,0.57453556,107090.0,107080.0,0.63169787]
[1750070502642,0.5651978,107090.0,107080.0,0.61302052]
[1750070502849,0.55585986,107090.0,107080.0,0.62235933]
[1750070503076,0.55585986,107090.0,107080.0,0.63169805]
[1750070505662,0.55585986,107090.0,107080.0,0.64103668]
[1750070508361,0.55585986,107090.0,107080.0,0.63169805]
[1750070509064,0.55585986,107090.0,107080.0,0.27432428]
[1750070509300,0.55585986,107090.0,107080.0,0.42624428]
[1750070512833,0.52780586,107090.0,107080.0,0.42624428]
[1750070516106,0.55023068,107090.0,107080.0,0.44375513]
[1750070516313,0.55023068,107090.0,107080.0,0.42624428]
[1750070516546,0.55023068,107090.0,107080.0,0.44375529]
[1750070516754,0.55023068,107090.0,107080.0,0.42624428]
[1750070516971,0.55023068,107090.0,107080.0,0.44374617]
[1750070517411,0.55023068,107090.0,107080.0,0.42624428]
[1750070518493,0.55023068,107090.0,107080.0,0.46124873]
[1750070518711,0.55023068,107090.0,107080.0,0.44374624]
[1750070518934,0.55023068,107090.0,107080.0,0.46124907]
[1750070519144,0.55023068,107090.0,107080.0,0.44374624]
[1750070519377,0.55023068,107090.0,107080.0,0.29182624]
[1750070519794,0.55023068,107090.0,107080.0,0.44374624]
[1750070520021,0.59143068,107090.0,107080.0,0.44374624]
[1750070520483,0.55023068,107090.0,107080.0,0.44374624]
[1750070521654,0.57828668,107090.0,107080.0,0.44374624]
[1750070523974,0.59718668,107090.0,107080.0,0.29182624]
[1750070524232,0.61778668,107090.0,107080.0,0.44374624]
[1750070524652,0.57828668,107090.0,107080.0,0.44374624]
[1750070525142,0.57828668,107090.0,107080.0,0.29182624]
[1750070525270,0.57828668,107090.0,107080.0,0.44374624]
[1750070526388,0.59698668,107090.0,107080.0,0.44374624]
[1750070526513,0.57828668,107090.0,107080.0,0.44374624]
[1750070530366,0.61888668,107090.0,107080.0,0.04182624]
[1750070530592,0.61888668,107090.0,107080.0,0.19374624]
[1750070531688,0.61888668,107090.0,107080.0,0.18344624]
[1750070532979,0.61888668,107090.0,107080.0,0.03152624]
[1750070536118,0.57828668,107090.0,107080.0,0.03152624]
[1750070543611,0.57828668,107090.0,107080.0,0.01084624]
[1750070543812,0.59808668,107090.0,107080.0,0.01084624]
[1750070544495,0.53611496,107080.0,107070.0,0.26567214]
[1750070544705,0.53611496,107080.0,107070.0,0.41811214]
[1750070545654,0.53611496,107080.0,107070.0,0.22547214]
[1750070545864,0.53613327,107070.0,107060.0,0.28894813]
[1750070546066,0.53613327,107070.0,107060.0,0.63749981]
[1750070546847,0.53613327,107070.0,107060.0,0.28894813]
[1750070547056,0.53613327,107070.0,107060.0,0.47575926]
[1750070547263,0.53613327,107070.0,107060.0,0.48509981]
[1750070547438,0.53613327,107070.0,107060.0,0.63749981]
[1750070547857,0.53613327,107070.0,107060.0,0.63849981]
[1750070548081,0.53613327,107070.0,107060.0,0.48609981]
[1750070548285,0.53613327,107070.0,107060.0,0.60981926]
[1750070548532,0.53613327,107070.0,107060.0,0.61915981]
[1750070549145,0.53613327,107070.0,107060.0,0.64860019]
[1750070549359,0.53613327,107070.0,107060.0,0.49624019]
[1750070549589,0.53613327,107070.0,107060.0,0.65056019]
[1750070550443,0.53613327,107070.0,107060.0,0.48889981]
[1750070551899,0.53613327,107070.0,107060.0,0.49824027]
[1750070553299,0.53613327,107070.0,107060.0,0.29274813]
[1750070553502,0.52679368,107070.0,107060.0,0.45945926]
[1750070553702,0.52679368,107070.0,107060.0,0.46879981]
[1750070556222,0.52679368,107070.0,107060.0,0.48829981]
[1750070556666,0.97679368,107070.0,107060.0,0.48829981]
[1750070557297,0.97679368,107070.0,107060.0,0.46879981]
[1750070557455,0.97679368,107070.0,107060.0,0.62107981]
[1750070558314,0.97679368,107070.0,107060.0,0.44939981]
[1750070558473,0.97679368,107070.0,107060.0,0.60163981]
[1750070559021,0.97679368,107070.0,107060.0,0.41482868]
[1750070560392,0.97679368,107070.0,107060.0,0.40548813]
[1750070560896,0.97679368,107070.0,107060.0,0.59229926]
[1750070561328,0.97679368,107070.0,107060.0,0.61229926]
[1750070562160,0.97679368,107070.0,107060.0,0.64968019]
[1750070562364,0.98613327,107070.0,107060.0,0.65902048]
[1750070563157,0.98613327,107070.0,107060.0,0.64968019]
[1750070563590,0.98613327,107070.0,107060.0,0.65902048]
[1750070564010,0.98613327,107070.0,107060.0,0.50678048]
[1750070564202,0.98613327,107070.0,107060.0,0.65894048]
[1750070565577,0.98613327,107070.0,107060.0,0.64960019]
[1750070567668,0.98613327,107070.0,107060.0,0.65894048]
[1750070569505,0.98613327,107070.0,107060.0,0.64960019]
[1750070571656,0.98613327,107070.0,107060.0,0.64025981]
[1750070571917,0.97679368,107070.0,107060.0,0.27324813]
[1750070572189,0.97679368,107070.0,107060.0,0.40532813]
[1750070573740,1.01479368,107070.0,107060.0,0.40532813]
[1750070574156,1.04285468,107070.0,107060.0,0.40532813]
[1750070574301,1.02445468,107070.0,107060.0,0.40532813]
[1750070574512,1.00485468,107070.0,107060.0,0.40532813]
[1750070574928,1.00485468,107070.0,107060.0,0.48889964]
[1750070574929,1.02353342,107070.0,107060.0,0.48889964]
[1750070575131,1.01419418,107070.0,107060.0,0.44482813]
[1750070575336,1.01419418,107070.0,107060.0,0.62963926]
[1750070575691,1.01419418,107070.0,107060.0,0.44182813]
[1750070575905,1.03761157,107070.0,107060.0,0.62863926]
[1750070577235,1.03761157,107070.0,107060.0,0.63797981]
[1750070578650,1.03761157,107070.0,107060.0,0.44182813]
[1750070582982,1.056294,107070.0,107060.0,0.64732027]
[1750070583388,1.03387284,107070.0,107060.0,0.66600076]
[1750070584209,1.05629382,107070.0,107060.0,0.66600076]
[1750070585457,1.05629382,107070.0,107060.0,0.67534088]
[1750070588715,1.05629382,107070.0,107060.0,0.25024813]
[1750070588906,1.04695458,107070.0,107060.0,0.15228813]
[1750070589113,1.08635458,107070.0,107060.0,0.15228813]
[1750070589877,1.08635458,107070.0,107060.0,0.15224813]
[1750070590085,1.03761525,107070.0,107060.0,0.15224813]
[1750070598221,1.03761525,107070.0,107060.0,0.00024813]
[1750070604617,1.07531525,107070.0,107060.0,0.00024813]
[1750070607700,0.53615151,107060.0,107050.0,0.02]
[1750070607911,0.20551056,107050.0,107040.0,0.39631123]
[1750070608122,0.20551056,107050.0,107040.0,0.49255299]
[1750070608533,0.23357456,107050.0,107040.0,0.49255299]
[1750070608734,0.23357456,107050.0,107040.0,0.24435123]
[1750070608940,0.23357456,107050.0,107040.0,0.39655123]
[1750070609143,0.23357456,107050.0,107040.0,0.39702308]
[1750070609354,0.25345445,107050.0,107040.0,0.40102325]
[1750070609564,0.24411355,107050.0,107040.0,0.40102325]
[1750070609788,0.24411355,107050.0,107040.0,0.40302325]
[1750070610037,0.58411355,107050.0,107040.0,0.04537185]
[1750070610269,0.58411355,107050.0,107040.0,0.15863185]
[1750070610474,0.58411355,107050.0,107040.0,0.00647185]
[1750070611350,0.58411355,107050.0,107040.0,0.00447185]
[1750070611558,0.58411355,107050.0,107040.0,0.00047185]
[1750070611784,0.58411355,107050.0,107040.0,0.00347185]
[1750070612215,0.58411355,107050.0,107040.0,0.00247185]
[1750070612421,0.62131355,107050.0,107040.0,0.00247185]
[1750070612664,0.64569942,107050.0,107040.0,0.00047185]
[1750070612876,0.62331355,107050.0,107040.0,0.00047185]
[1750070613101,0.62531355,107050.0,107040.0,0.00047185]
[1750070615382,0.60711355,107050.0,107040.0,0.00047185]
[1750070615610,0.58811355,107050.0,107040.0,0.00047185]
[1750070620717,0.59745454,107050.0,107040.0,0.21596009]
[1750070620934,0.59745454,107050.0,107040.0,0.23486009]
[1750070621132,0.60679535,107050.0,107040.0,0.24420204]
[1750070621345,0.60679535,107050.0,107040.0,0.19666009]
[1750070621559,0.59745454,107050.0,107040.0,0.19666009]
[1750070623908,0.58811346,107050.0,107040.0,0.00047185]
[1750070624140,0.58811346,107050.0,107040.0,0.00981415]
[1750070624342,0.58811346,107050.0,107040.0,0.00047185]
[1750070626131,0.58811346,107050.0,107040.0,0.18731788]
[1750070626347,0.58811346,107050.0,107040.0,0.23366]
[1750070626764,0.58811346,107050.0,107040.0,0.24300204]
[1750070628323,0.58811346,107050.0,107040.0,0.25234399]
[1750070629838,0.60679579,107050.0,107040.0,0.40494399]
[1750070630277,0.60579579,107050.0,107040.0,0.40494399]
[1750070630892,0.40962535,107050.0,107040.0,0.40494399]
[1750070631093,0.42830741,107050.0,107040.0,0.41428568]
[1750070631295,0.40962517,107050.0,107040.0,0.41428568]
[1750070631500,0.42830715,107050.0,107040.0,0.41428568]
[1750070632023,0.41896607,107050.0,107040.0,0.41428568]
[1750070632232,0.42830715,107050.0,107040.0,0.41428568]
[1750070632436,0.41896607,107050.0,107040.0,0.41428568]
[1750070632641,0.42830715,107050.0,107040.0,0.41428568]
[1750070632979,0.41896607,107050.0,107040.0,0.41428568]
[1750070633180,0.42830715,107050.0,107040.0,0.41428568]
[1750070633705,0.41896607,107050.0,107040.0,0.41428568]
[1750070634168,0.41896607,107050.0,107040.0,0.26168568]
[1750070634386,0.39094363,107050.0,107040.0,0.51056744]
[1750070634591,0.40028436,107050.0,107040.0,0.51056744]
[1750070634751,0.39094363,107050.0,107040.0,0.51056744]
[1750070634947,0.40028427,107050.0,107040.0,0.51056744]
[1750070635783,0.40962508,107050.0,107040.0,0.51056744]
[1750070636006,0.40028427,107050.0,107040.0,0.51056744]
[1750070637989,0.40962508,107050.0,107040.0,0.51056744]
[1750070639241,0.41896607,107050.0,107040.0,0.51056744]
[1750070641023,0.42830723,107050.0,107040.0,0.51056744]
[1750070641227,0.41896607,107050.0,107040.0,0.51056744]
[1750070642177,0.42830723,107050.0,107040.0,0.51056744]
[1750070642383,0.43764848,107050.0,107040.0,0.35792744]
[1750070642590,0.43764848,107050.0,107040.0,0.51056744]
[1750070643578,0.42830784,107050.0,107040.0,0.51056744]
[1750070647985,0.61513642,107050.0,107040.0,0.51056744]
[1750070648193,0.61513695,107050.0,107040.0,0.34858575]
[1750070648430,0.61513695,107050.0,107040.0,0.51986938]
[1750070648865,0.42830837,107050.0,107040.0,0.51986895]
[1750070649695,0.61513695,107050.0,107040.0,0.51986895]
[1750070650185,0.61513695,107050.0,107040.0,0.35792726]
[1750070650389,0.61885919,107050.0,107040.0,0.45484406]
[1750070651320,0.61885919,107050.0,107040.0,0.4641861]
[1750070652456,0.61885919,107050.0,107040.0,0.09671361]
[1750070652581,0.6001766,107050.0,107040.0,0.15311185]
[1750070654090,0.6373766,107050.0,107040.0,0.33991788]
[1750070654650,0.61497221,107050.0,107040.0,0.00047185]
[1750070654856,0.61497221,107050.0,107040.0,0.15307185]
[1750070655088,0.63737717,107050.0,107040.0,0.15307185]
[1750070655295,0.63737717,107050.0,107040.0,0.00047185]
[1750070655503,0.63737717,107050.0,107040.0,0.15307185]
[1750070656135,0.61497221,107050.0,107040.0,0.15307185]
[1750070656550,0.61497221,107050.0,107040.0,0.00047185]
[1750070656736,0.61497221,107050.0,107040.0,0.15311185]
[1750070656975,0.63737566,107050.0,107040.0,0.15311185]
[1750070657905,0.63737566,107050.0,107040.0,0.15307185]
[1750070659258,0.63737566,107050.0,107040.0,0.15303185]
[1750070660345,0.63737566,107050.0,107040.0,0.33987788]
[1750070660751,0.63737566,107050.0,107040.0,0.15303185]
[1750070660970,0.63737566,107050.0,107040.0,0.00047185]
[1750070661156,0.63737566,107050.0,107040.0,0.15311185]
[1750070662488,0.63737566,107050.0,107040.0,0.00047185]
[1750070662702,0.60017566,107050.0,107040.0,0.18731788]
[1750070663850,0.60017566,107050.0,107040.0,0.19666018]
[1750070664067,0.60017566,107050.0,107040.0,0.20600222]
[1750070664284,0.60951691,107050.0,107040.0,0.20600222]
[1750070664701,0.60951691,107050.0,107040.0,0.20600239]
[1750070664909,0.60017566,107050.0,107040.0,0.20600239]
[1750070665477,0.63837566,107050.0,107040.0,0.34938018]
[1750070665677,0.63837566,107050.0,107040.0,0.15319185]
[1750070666394,0.63837566,107050.0,107040.0,0.34003788]
[1750070666593,0.63837566,107050.0,107040.0,0.15319185]
[1750070666804,0.63837566,107050.0,107040.0,0.34003788]
[1750070667006,0.63837566,107050.0,107040.0,0.19666018]
[1750070667211,0.63837566,107050.0,107040.0,0.35872239]
[1750070667416,0.60017566,107050.0,107040.0,0.35872239]
[1750070668748,0.60017566,107050.0,107040.0,0.35876239]
[1750070669286,0.63767566,107050.0,107040.0,0.34942018]
[1750070669918,0.63767566,107050.0,107040.0,0.00981415]
[1750070670123,0.63767566,107050.0,107040.0,0.15323185]
[1750070670327,0.63767566,107050.0,107040.0,0.34007788]
[1750070670546,0.63767566,107050.0,107040.0,0.34942018]
[1750070671167,0.63937566,107050.0,107040.0,0.34938018]
[1750070671704,0.60017566,107050.0,107040.0,0.34938018]
[1750070671915,0.63797566,107050.0,107040.0,0.34938018]
[1750070672303,0.63797566,107050.0,107040.0,0.19666018]
[1750070672507,0.63797566,107050.0,107040.0,0.15319185]
[1750070673045,0.63797566,107050.0,107040.0,0.33999788]
[1750070673246,0.63797566,107050.0,107040.0,0.15315185]
[1750070673456,0.63797566,107050.0,107040.0,0.00047185]
[1750070673671,0.63797566,107050.0,107040.0,0.15315185]
[1750070674576,0.63797566,107050.0,107040.0,0.00047185]
[1750070674701,0.63797566,107050.0,107040.0,0.15311185]
[1750070675754,0.63797566,107050.0,107040.0,0.15307185]
[1750070678409,0.63797566,107050.0,107040.0,0.00047185]
[1750070679449,0.60017566,107050.0,107040.0,0.00047185]
[1750070680476,0.63687566,107050.0,107040.0,0.00047185]
[1750070681322,0.60017566,107050.0,107040.0,0.00047185]
[1750070683775,0.63697566,107050.0,107040.0,0.00047185]
[1750070688117,0.60017566,107050.0,107040.0,0.00047185]
[1750070691627,0.63927566,107050.0,107040.0,0.00047185]
[1750070692910,0.63928883,107050.0,107040.0,0.00047185]
[1750070698417,0.63868883,107050.0,107040.0,0.00047185]
[1750070701847,0.66670961,107050.0,107040.0,0.00047185]
[1750070703156,0.53618815,107040.0,107030.0,0.17036]
[1750070703363,0.55860477,107040.0,107030.0,0.17050147]
[1750070703781,0.55860477,107040.0,107030.0,0.01834147]
[1750070704059,0.58667377,107040.0,107030.0,0.01834147]
[1750070704678,0.58667377,107040.0,107030.0,0.00014147]